[Event "Chpt Reg Jeunes Occitanie 2026 - Espalion"]
[Site "Espalion, France"]
[Round "1.11"]
[ECO "?"]
[Annotator "?"]
[TimeControl "1h30 + 30sec/cp"]

1. d4 {[%clk 1:30:49][%emt 0:00:08]} 1... d5 {[%clk 1:30:52][%emt 0:00:10]} 2.
c4 {[%clk 1:31:15][%emt 0:00:03]} 2... dxc4 {[%clk 1:31:13][%emt 0:00:10]} 3.
Qa4+ {[%clk 1:31:36][%emt 0:00:07]} 3... Bd7 {[%clk 1:31:10][%emt 0:00:34]} 4.
Qxc4 {[%clk 1:31:57][%emt 0:00:08]} 4... e6 {[%clk 1:30:56][%emt 0:00:45]} 5.
Nf3 {[%clk 1:30:02][%emt 0:02:25]} 5... Nc6 {[%clk 1:30:53][%emt 0:00:33]} 6.
e4 {[%clk 1:29:14][%emt 0:01:17]} 6... a6 {[%clk 1:30:57][%emt 0:00:27]} 7. g3
{[%clk 1:26:53][%emt 0:02:50]} 7... Nb4 {[%clk 1:30:08][%emt 0:01:19]} 8. Bd2
{[%clk 1:23:20][%emt 0:04:03]} 8... Bb5 {[%clk 1:30:19][%emt 0:00:20]} 9. Qb3
{[%clk 1:23:28][%emt 0:00:21]} 9... Bxf1 {[%clk 1:30:03][%emt 0:00:47]} 10.
Kxf1 {[%clk 1:23:47][%emt 0:00:10]} 10... Nc6 {[%clk 1:29:35][%emt 0:00:59]}
11. Qxb7 {[%clk 1:21:00][%emt 0:03:16]} 11... Nge7 {[%clk 1:29:49][%emt
0:00:17]} 12. Bc3 {[%clk 1:20:19][%emt 0:01:11]} 12... Qc8 {[%clk
1:29:32][%emt 0:00:46]} 13. Qxc8+ {[%clk 1:20:05][%emt 0:00:45]} 13... Rxc8
{[%clk 1:29:54][%emt 0:00:08]} 14. Nbd2 {[%clk 1:20:02][%emt 0:00:32]} 14...
Ng6 {[%clk 1:29:51][%emt 0:00:34]} 15. Rc1 {[%clk 1:18:57][%emt 0:01:34]}
15... Bb4 {[%clk 1:28:30][%emt 0:01:51]} 16. Ke2 {[%clk 1:17:45][%emt 0:01:41]}
 16... O-O {[%clk 1:28:07][%emt 0:00:54]} 17. Bxb4 {[%clk 1:17:52][%emt
0:00:23]} 17... Nxb4 {[%clk 1:28:26][%emt 0:00:11]} 18. a3 {[%clk
1:18:17][%emt 0:00:05]} 18... Nd5 {[%clk 1:28:02][%emt 0:00:54]} 19. exd5
{[%clk 1:18:37][%emt 0:00:10]} 19... exd5 {[%clk 1:28:24][%emt 0:00:09]} 20.
Kd3 {[%clk 1:18:15][%emt 0:00:51]} 20... Rb8 {[%clk 1:27:26][%emt 0:01:28]}
21. b4 {[%clk 1:18:03][%emt 0:00:42]} 21... Rbc8 {[%clk 1:26:52][%emt 0:01:05]}
 22. Rhe1 {[%clk 1:17:44][%emt 0:00:48]} 22... f6 {[%clk 1:26:52][%emt
0:00:30]} 23. Rc6 {[%clk 1:17:39][%emt 0:00:35]} 23... Kf7 {[%clk
1:26:49][%emt 0:00:33]} 24. Nb3 {[%clk 1:17:31][%emt 0:00:38]} 24... Ne7
{[%clk 1:26:31][%emt 0:00:48]} 25. Rxa6 {[%clk 1:17:43][%emt 0:00:18]} 25...
c6 {[%clk 1:26:29][%emt 0:00:32]} 26. Ra7 {[%clk 1:17:51][%emt 0:00:22]} 26...
Rfe8 {[%clk 1:26:27][%emt 0:00:32]} 27. Nc5 {[%clk 1:18:05][%emt 0:00:16]}
27... Ra8 {[%clk 1:26:27][%emt 0:00:31]} 28. Rexe7+ {[%clk 1:18:23][%emt
0:00:10]} 28... Rxe7 {[%clk 1:26:43][%emt 0:00:16]} 29. Rxa8 {[%clk
1:18:46][%emt 0:00:07]} 1-0

[White "FANISE, Tao"]
[Black "VALMIR, Clovis"]
[WhiteElo "1512"]
[BlackElo "2006"]
[Result "0-1"]
[Date "2026.03.04"]

[Event "Chpt Reg Jeunes Occitanie 2026 - Espalion"]
[Site "Espalion, France"]
[Round "1.12"]
[ECO "?"]
[Annotator "?"]
[TimeControl "1h30 + 30sec/cp"]

1. e4 {[%clk 1:30:58][%emt 0:00:02]} 1... c5 {[%clk 1:30:48][%emt 0:00:11]} 2.
Nf3 {[%clk 1:31:23][%emt 0:00:05]} 2... d6 {[%clk 1:31:13][%emt 0:00:05]} 3.
d4 {[%clk 1:31:42][%emt 0:00:11]} 3... cxd4 {[%clk 1:31:37][%emt 0:00:06]} 4.
Nxd4 {[%clk 1:32:05][%emt 0:00:07]} 4... Nf6 {[%clk 1:32:03][%emt 0:00:04]} 5.
Nc3 {[%clk 1:32:25][%emt 0:00:09]} 5... a6 {[%clk 1:32:03][%emt 0:00:29]} 6.
Bc4 {[%clk 1:31:20][%emt 0:01:36]} 6... e6 {[%clk 1:31:35][%emt 0:00:58]} 7.
Bg5 {[%clk 1:31:23][%emt 0:00:27]} 7... b5 {[%clk 1:30:29][%emt 0:01:36]} 8.
Bb3 {[%clk 1:31:23][%emt 0:00:31]} 8... Be7 {[%clk 1:29:50][%emt 0:01:08]} 9.
f3 {[%clk 1:31:30][%emt 0:00:24]} 9... O-O {[%clk 1:27:30][%emt 0:02:49]} 10.
O-O {[%clk 1:30:47][%emt 0:01:13]} 10... Qc7 {[%clk 1:26:22][%emt 0:01:38]}
11. a3 {[%clk 1:28:50][%emt 0:02:28]} 11... h6 {[%clk 1:22:41][%emt 0:04:10]}
12. Bh4 {[%clk 1:28:19][%emt 0:01:01]} 12... Nxe4 {[%clk 1:22:38][%emt
0:00:33]} 13. Bxe7 {[%clk 1:20:10][%emt 0:08:39]} 13... Nxc3 {[%clk
1:22:14][%emt 0:00:54]} 14. Bxd6 {[%clk 1:20:29][%emt 0:00:12]} 14... Qxd6
{[%clk 1:21:06][%emt 0:01:38]} 15. bxc3 {[%clk 1:20:46][%emt 0:00:13]} 15...
Qc5 {[%clk 1:21:04][%emt 0:00:30]} 16. Kh1 {[%clk 1:18:06][%emt 0:03:11]}
16... Qxc3 {[%clk 1:20:16][%emt 0:01:18]} 17. Ne2 {[%clk 1:17:41][%emt
0:00:55]} 17... Qa5 {[%clk 1:19:38][%emt 0:01:07]} 18. Ng3 {[%clk
1:17:32][%emt 0:00:40]} 18... Bb7 {[%clk 1:18:32][%emt 0:01:36]} 19. Qe2
{[%clk 1:17:23][%emt 0:00:40]} 19... Nc6 {[%clk 1:17:31][%emt 0:01:30]} 20.
Rfd1 {[%clk 1:16:06][%emt 0:01:09]} 20... Rad8 {[%clk 1:16:24][%emt 0:02:15]}
21. Rxd8 {[%clk 1:14:16][%emt 0:02:20]} 21... Rxd8 {[%clk 1:16:38][%emt
0:00:15]} 22. Rd1 {[%clk 1:14:40][%emt 0:00:07]} 22... Rd4 {[%clk
1:12:50][%emt 0:04:18]} 23. h3 {[%clk 1:11:51][%emt 0:03:20]} 23... Qd8 {[%clk
1:07:56][%emt 0:05:23]} 24. Re1 {[%clk 1:09:35][%emt 0:02:47]} 24... Rd2
{[%clk 1:06:42][%emt 0:01:44]} 25. Qe4 {[%clk 1:08:27][%emt 0:01:38]} 25...
Qd4 {[%clk 1:05:55][%emt 0:01:15]} 26. Qxd4 {[%clk 1:07:36][%emt 0:01:22]}
26... Nxd4 {[%clk 1:06:14][%emt 0:00:11]} 27. Rc1 {[%clk 1:07:41][%emt
0:00:25]} 27... Nxf3 {[%clk 1:05:42][%emt 0:01:02]} 28. Nf1 {[%clk
1:07:27][%emt 0:00:44]} 28... Rf2 {[%clk 1:05:40][%emt 0:00:29]} 29. Ne3
{[%clk 1:06:28][%emt 0:01:33]} 29... Re2 {[%clk 1:04:31][%emt 0:01:37]} 30.
Rd1 {[%clk 1:04:06][%emt 0:02:53]} 30... Rxe3 {[%clk 1:03:50][%emt 0:01:10]}
31. Rd8+ {[%clk 1:04:27][%emt 0:00:10]} 31... Kh7 {[%clk 1:03:55][%emt
0:00:26]} 32. Rd7 {[%clk 1:04:15][%emt 0:00:41]} 32... Re1# {[%clk
1:04:14][%emt 0:00:10]} 0-1

[White "MARTINEZ, Julien"]
[Black "JOULE, Elise"]
[WhiteElo "1920"]
[BlackElo "1494"]
[Result "1-0"]
[Date "2026.03.04"]

[Event "Chpt Reg Jeunes Occitanie 2026 - Espalion"]
[Site "Espalion, France"]
[Round "1.13"]
[ECO "?"]
[Annotator "?"]
[TimeControl "1h30 + 30sec/cp"]

1. d4 {[%clk 1:30:59][%emt 0:00:01]} 1... Nf6 {[%clk 1:30:51][%emt 0:00:07]}
2. Bf4 {[%clk 1:31:23][%emt 0:00:06]} 2... d5 {[%clk 1:31:06][%emt 0:00:15]}
3. Nf3 {[%clk 1:31:46][%emt 0:00:07]} 3... Bf5 {[%clk 1:30:46][%emt 0:00:49]}
4. e3 {[%clk 1:32:08][%emt 0:00:08]} 4... e6 {[%clk 1:30:13][%emt 0:01:03]} 5.
c4 {[%clk 1:32:31][%emt 0:00:07]} 5... Bb4+ {[%clk 1:28:38][%emt 0:02:05]} 6.
Nbd2 {[%clk 1:32:44][%emt 0:00:17]} 6... c5 {[%clk 1:27:25][%emt 0:01:43]} 7.
cxd5 {[%clk 1:31:51][%emt 0:01:23]} 7... exd5 {[%clk 1:25:30][%emt 0:02:28]}
8. Bxb8 {[%clk 1:30:58][%emt 0:01:21]} 8... Rxb8 {[%clk 1:23:41][%emt 0:02:17]}
 9. Bb5+ {[%clk 1:31:02][%emt 0:00:27]} 9... Bd7 {[%clk 1:22:18][%emt 0:01:49]}
 10. Bxd7+ {[%clk 1:31:18][%emt 0:00:18]} 10... Qxd7 {[%clk 1:22:13][%emt
0:00:35]} 11. O-O {[%clk 1:30:34][%emt 0:01:14]} 11... O-O {[%clk
1:22:04][%emt 0:00:39]} 12. Ne5 {[%clk 1:30:28][%emt 0:00:36]} 12... Qe6
{[%clk 1:20:05][%emt 0:02:29]} 13. Nd3 {[%clk 1:29:22][%emt 0:01:34]} 13...
Bxd2 {[%clk 1:18:45][%emt 0:01:53]} 14. Nxc5 {[%clk 1:29:20][%emt 0:00:32]}
14... Qc6 {[%clk 1:17:31][%emt 0:01:43]} 15. Qxd2 {[%clk 1:29:36][%emt
0:00:15]} 15... b6 {[%clk 1:17:27][%emt 0:00:34]} 16. Nd3 {[%clk 1:28:54][%emt
0:01:10]} 16... a5 {[%clk 1:15:57][%emt 0:02:01]} 17. Rac1 {[%clk
1:28:51][%emt 0:00:33]} 17... Ne4 {[%clk 1:15:01][%emt 0:01:23]} 18. Qe2
{[%clk 1:28:34][%emt 0:00:49]} 18... Qb5 {[%clk 1:12:30][%emt 0:03:02]} 19.
Nf4 {[%clk 1:28:01][%emt 0:01:04]} 19... Qb4 {[%clk 1:10:43][%emt 0:02:16]}
20. Nxd5 {[%clk 1:26:43][%emt 0:01:48]} 20... Qd6 {[%clk 1:08:56][%emt
0:02:11]} 21. Nc3 {[%clk 1:26:57][%emt 0:00:23]} 21... Nxc3 {[%clk
1:08:17][%emt 0:01:10]} 22. Rxc3 {[%clk 1:27:09][%emt 0:00:19]} 22... Rbc8
{[%clk 1:08:29][%emt 0:00:18]} 23. Rfc1 {[%clk 1:27:32][%emt 0:00:06]} 23...
Qd7 {[%clk 1:08:09][%emt 0:00:51]} 24. Qc2 {[%clk 1:26:42][%emt 0:01:18]}
24... Rxc3 {[%clk 1:07:42][%emt 0:00:57]} 25. Qxc3 {[%clk 1:27:07][%emt
0:00:06]} 25... h6 {[%clk 1:06:30][%emt 0:01:40]} 26. Qc6 {[%clk 1:27:02][%emt
0:00:32]} 26... Qa7 {[%clk 1:05:14][%emt 0:01:49]} 27. h3 {[%clk 1:27:13][%emt
0:00:20]} 27... Qa6 {[%clk 1:04:18][%emt 0:01:27]} 28. d5 {[%clk 1:27:27][%emt
0:00:15]} 28... Qd3 {[%clk 1:03:13][%emt 0:01:36]} 29. Qd7 {[%clk
1:26:06][%emt 0:01:43]} 29... Qd2 {[%clk 1:00:14][%emt 0:03:36]} 30. Rc8
{[%clk 1:26:19][%emt 0:00:17]} 30... Qb4 {[%clk 1:00:39][%emt 0:00:04]} 31. d6
{[%clk 1:26:32][%emt 0:00:19]} 31... Qe1+ {[%emt 0:01:22]} 32. Kh2 {[%emt
0:00:20]} 32... Qxf2 {[%clk 0:58:51][%emt 0:00:35]} 33. Rxf8+ {[%clk
1:26:52][%emt 0:00:11]} 33... Kxf8 {[%clk 0:58:53][%emt 0:00:23]} 34. Qd8#
{[%emt 0:00:28]} 1-0

[White "HACHANI, Mila"]
[Black "VILLEMIN CHARTIER, Elias"]
[WhiteElo "1491"]
[BlackElo "1900"]
[Result "0-1"]
[Date "2026.03.04"]

[Event "Chpt Reg Jeunes Occitanie 2026 - Espalion"]
[Site "Espalion, France"]
[Round "1.14"]
[ECO "?"]
[Annotator "?"]
[TimeControl "1h30 + 30sec/cp"]

1. e4 {[%clk 1:30:56][%emt 0:00:06]} 1... e5 {[%clk 1:30:57][%emt 0:00:01]} 2.
Nf3 {[%clk 1:31:15][%emt 0:00:12]} 2... Nc6 {[%clk 1:31:23][%emt 0:00:04]} 3.
Bc4 {[%clk 1:31:36][%emt 0:00:09]} 3... f5 {[%clk 1:31:48][%emt 0:00:05]} 4.
d3 {[%clk 1:31:05][%emt 0:01:01]} 4... Nf6 {[%clk 1:32:12][%emt 0:00:06]} 5.
Bg5 {[%clk 1:29:04][%emt 0:02:30]} 5... h6 {[%clk 1:32:37][%emt 0:00:06]} 6.
Bxf6 {[%clk 1:28:30][%emt 0:01:04]} 6... Qxf6 {[%clk 1:33:00][%emt 0:00:08]}
7. a3 {[%clk 1:22:46][%emt 0:06:14]} 7... fxe4 {[%clk 1:28:24][%emt 0:05:06]}
8. dxe4 {[%clk 1:22:44][%emt 0:00:32]} 8... d6 {[%clk 1:27:58][%emt 0:00:56]}
9. h3 {[%clk 1:22:35][%emt 0:00:39]} 9... Qg6 {[%clk 1:27:46][%emt 0:00:41]}
10. Qd5 {[%clk 1:18:43][%emt 0:04:22]} 10... Ne7 {[%clk 1:24:04][%emt 0:04:12]}
 11. Qd3 {[%clk 1:13:52][%emt 0:05:21]} 11... Bd7 {[%clk 1:20:11][%emt
0:04:23]} 12. Nc3 {[%clk 1:13:49][%emt 0:00:34]} 12... O-O-O {[%clk
1:18:51][%emt 0:01:49]} 13. O-O-O {[%clk 1:14:01][%emt 0:00:18]} 13... Qxg2
{[%clk 1:17:01][%emt 0:02:20]} 14. Rh2 {[%clk 1:13:14][%emt 0:01:17]} 14...
Qg6 {[%clk 1:15:13][%emt 0:02:17]} 15. Qe3 {[%clk 1:12:03][%emt 0:01:41]}
15... Kb8 {[%clk 1:11:54][%emt 0:03:49]} 16. Rd3 {[%clk 1:09:22][%emt 0:03:11]}
 16... Qf6 {[%clk 1:10:46][%emt 0:01:38]} 17. Na2 {[%clk 1:07:53][%emt
0:01:59]} 17... Qf4 {[%clk 1:09:49][%emt 0:01:26]} 18. Qxf4 {[%clk
1:05:41][%emt 0:02:43]} 18... exf4 {[%clk 1:10:12][%emt 0:00:07]} 19. Rb3
{[%clk 1:05:52][%emt 0:00:18]} 19... Bc6 {[%clk 1:09:19][%emt 0:01:24]} 20.
Nc3 {[%clk 1:05:02][%emt 0:01:20]} 20... b6 {[%clk 1:07:35][%emt 0:02:14]} 21.
Nd4 {[%clk 1:04:14][%emt 0:01:19]} 21... Bd7 {[%clk 1:06:35][%emt 0:01:28]}
22. Ba6 {[%clk 1:03:51][%emt 0:00:54]} 22... Nc6 {[%clk 1:05:53][%emt 0:01:12]}
 23. Ndb5 {[%clk 1:00:12][%emt 0:04:09]} 23... Ne5 {[%clk 0:57:29][%emt
0:08:53]} 24. Nd4 {[%clk 0:53:32][%emt 0:07:10]} 24... g5 {[%clk 0:54:19][%emt
0:03:40]} 25. Nd5 {[%clk 0:50:28][%emt 0:03:34]} 25... Bg7 {[%clk
0:52:18][%emt 0:02:31]} 26. c3 {[%clk 0:44:54][%emt 0:06:04]} 26... Nc6 {[%clk
0:48:38][%emt 0:04:09]} 27. Nb5 {[%emt 0:02:37]} 27... Na5 28. Rb4 Bxb5 29.
Bxb5 c6 30. Bxc6 Nxc6 31. Rc4 Kb7 32. f3 Be5 33. Rd2 b5 34. Rxc6 Kxc6 35. Ne7+
Kb7 36. Ng6 Rhe8 37. Rd5 a6 38. a4 Re6 39. Nxe5 Rxe5 40. Rd4 d5 41. axb5 axb5
42. b3 Kc6 43. b4 Ra8 44. Kd2 dxe4 45. fxe4 Rae8 46. Kd3 f3 47. Ke3 Rxe4+ 48.
Rxe4 Rxe4+ 49. Kxf3 Rc4 50. Kg3 Rxc3+ 51. Kg4 Rc4+ 52. Kh5 Rxb4 53. Kxh6 Rh4+
54. Kxg5 Rxh3 55. Kf4 b4 56. Kg4 Rd3 57. Kf4 b3 58. Ke4 Rd8 59. Ke5 b2 60. Kf5
b1=Q+ 61. Kg5 Rg8+ 62. Kh5 {[%clk 0:42:47]} 62... Qh1# 0-1

[White "ANZA-HAFSA, Salim"]
[Black "MOREL, Ysaline"]
[WhiteElo "1823"]
[BlackElo "1490"]
[Result "1-0"]
[Date "2026.03.04"]

[Event "Chpt Reg Jeunes Occitanie 2026 - Espalion"]
[Site "Espalion, France"]
[Round "1.15"]
[ECO "?"]
[Annotator "?"]
[TimeControl "1h30 + 30sec/cp"]

1. e4 {[%clk 1:30:56][%emt 0:00:06]} 1... e6 {[%clk 1:30:39][%emt 0:00:20]} 2.
d4 {[%clk 1:31:20][%emt 0:00:06]} 2... d5 {[%clk 1:31:05][%emt 0:00:04]} 3. e5
{[%clk 1:31:45][%emt 0:00:04]} 3... Bd7 {[%clk 1:31:20][%emt 0:00:16]} 4. Nf3
{[%clk 1:31:40][%emt 0:00:35]} 4... c5 {[%clk 1:31:40][%emt 0:00:10]} 5. c3
{[%clk 1:32:01][%emt 0:00:09]} 5... Nc6 {[%clk 1:31:21][%emt 0:00:50]} 6. a3
{[%clk 1:31:13][%emt 0:01:18]} 6... Qb6 {[%clk 1:30:13][%emt 0:01:38]} 7. b4
{[%clk 1:31:05][%emt 0:00:38]} 7... cxd4 {[%clk 1:29:20][%emt 0:01:22]} 8.
cxd4 {[%clk 1:31:10][%emt 0:00:24]} 8... a6 {[%clk 1:27:42][%emt 0:02:08]} 9.
Be3 {[%clk 1:27:57][%emt 0:03:43]} 9... Nge7 {[%clk 1:26:55][%emt 0:01:18]}
10. Nbd2 {[%clk 1:22:57][%emt 0:05:30]} 10... Ng6 {[%clk 1:25:50][%emt
0:01:35]} 11. Nb3 {[%clk 1:20:06][%emt 0:03:21]} 11... Be7 {[%clk
1:22:41][%emt 0:03:38]} 12. Bd3 {[%clk 1:18:36][%emt 0:02:00]} 12... Qc7
{[%clk 1:19:47][%emt 0:03:25]} 13. Rc1 {[%clk 1:14:57][%emt 0:04:09]} 13... f6
{[%clk 1:15:28][%emt 0:04:49]} 14. Qc2 {[%clk 1:05:20][%emt 0:10:07]} 14... f5
{[%clk 1:12:42][%emt 0:03:16]} 15. h4 {[%clk 1:00:32][%emt 0:05:18]} 15... h5
{[%clk 1:11:59][%emt 0:01:13]} 16. Bg5 {[%clk 0:55:43][%emt 0:05:19]} 16...
Rc8 {[%clk 1:03:30][%emt 0:08:59]} 17. Qd2 {[%clk 0:48:06][%emt 0:08:06]}
17... Qd8 {[%clk 1:01:31][%emt 0:02:28]} 18. Nc5 {[%clk 0:42:14][%emt 0:06:22]}
 18... Rc7 {[%clk 0:59:31][%emt 0:02:30]} 19. Bxe7 {[%clk 0:37:09][%emt
0:05:35]} 19... Qxe7 {[%clk 0:59:00][%emt 0:00:59]} 20. Be2 {[%clk
0:35:23][%emt 0:02:19]} 20... Nb8 {[%clk 0:56:41][%emt 0:02:48]} 21. Ng5
{[%clk 0:30:53][%emt 0:05:00]} 21... b6 {[%emt 0:01:45]} 22. Nd3 Rxc1+ 23.
Qxc1 Nc6 24. Qd1 Nxh4 25. Bxh5+ Kf8 26. Rxh4 Qxg5 27. Nf4 Ne7 28. g3 g6 29.
Qd2 gxh5 30. Nxe6+ Bxe6 {[%clk 0:55:26]} 31. Qxg5 1-0

[White "LOMBARD, Louis"]
[Black "BAUER, Pierre"]
[WhiteElo "1663"]
[BlackElo "2174"]
[Result "0-1"]
[Date "2026.03.04"]

[Event "Chpt Reg Jeunes Occitanie 2026 - Espalion"]
[Site "Espalion, France"]
[Round "2.11"]
[ECO "?"]
[Annotator "?"]
[TimeControl "1h30 + 30sec/cp"]

1. d4 {[%clk 1:30:59]} 1... Nf6 {[%clk 1:30:47][%emt 0:00:13]} 2. c4 {[%clk
1:31:22][%emt 0:00:07]} 2... e6 {[%clk 1:31:04][%emt 0:00:12]} 3. Nf3 {[%clk
1:31:38][%emt 0:00:14]} 3... d5 {[%clk 1:31:25][%emt 0:00:07]} 4. g3 {[%clk
1:31:49][%emt 0:00:20]} 4... dxc4 {[%clk 1:31:42][%emt 0:00:13]} 5. Bg2 {[%clk
1:32:01][%emt 0:00:18]} 5... a6 {[%clk 1:32:02][%emt 0:00:11]} 6. O-O {[%clk
1:32:00][%emt 0:00:31]} 6... Nc6 {[%clk 1:32:22][%emt 0:00:10]} 7. e3 {[%clk
1:31:36][%emt 0:00:54]} 7... Bd7 {[%clk 1:32:37][%emt 0:00:14]} 8. Qc2 {[%clk
1:29:40][%emt 0:02:27]} 8... Nb4 {[%clk 1:30:39][%emt 0:02:27]} 9. Qe2 {[%clk
1:29:14][%emt 0:00:56]} 9... Bc6 {[%clk 1:22:40][%emt 0:08:28]} 10. Nbd2
{[%clk 1:26:55][%emt 0:02:50]} 10... b5 {[%clk 1:20:53][%emt 0:02:17]} 11. a3
{[%clk 1:25:10][%emt 0:02:16]} 11... Nbd5 {[%clk 1:15:14][%emt 0:06:08]} 12.
Ne5 {[%clk 1:22:39][%emt 0:03:01]} 12... Bb7 {[%clk 1:15:07][%emt 0:00:37]}
13. Ndf3 {[%clk 1:21:08][%emt 0:02:02]} 13... Be7 {[%clk 1:11:01][%emt
0:04:36]} 14. e4 {[%clk 1:13:19][%emt 0:08:19]} 14... Nb6 {[%clk 1:10:44][%emt
0:00:47]} 15. Ng5 {[%clk 1:09:52][%emt 0:03:57]} 15... O-O {[%clk
1:09:09][%emt 0:02:04]} 16. Rd1 {[%clk 1:08:52][%emt 0:01:31]} 16... Qe8
{[%clk 1:05:24][%emt 0:04:15]} 17. Bh3 {[%clk 1:05:11][%emt 0:04:11]} 17...
Nfd7 {[%clk 0:59:21][%emt 0:06:33]} 18. Qg4 {[%clk 0:44:50][%emt 0:20:51]}
18... Nxe5 {[%clk 0:52:51][%emt 0:07:00]} 19. dxe5 {[%clk 0:44:53][%emt
0:00:27]} 19... Qc6 {[%clk 0:50:39][%emt 0:02:40]} 20. Re1 {[%clk
0:41:39][%emt 0:03:46]} 20... Nd7 {[%clk 0:21:09][%emt 0:30:00]} 21. Nf3
{[%clk 0:37:10][%emt 0:04:59]} 21... f5 {[%clk 0:18:44][%emt 0:02:55]} 22. Qh5
{[%clk 0:33:54][%emt 0:03:46]} 22... fxe4 {[%clk 0:10:42][%emt 0:08:33]} 23.
Nd4 {[%clk 0:31:48][%emt 0:02:36]} 23... Qc5 {[%clk 0:11:10][%emt 0:00:02]}
24. Bxe6+ {[%clk 0:31:34][%emt 0:00:43]} 24... Kh8 {[%clk 0:11:40]} 25. Bf5
{[%clk 0:31:19][%emt 0:00:46]} 25... Rxf5 {[%clk 0:11:45][%emt 0:00:25]} 26.
Qxf5 {[%clk 0:29:48][%emt 0:02:01]} 26... Qxd4 {[%clk 0:06:39][%emt 0:05:36]}
27. Be3 {[%clk 0:29:48][%emt 0:00:30]} 27... Qxb2 {[%clk 0:03:39][%emt
0:03:31]} 28. Qxd7 {[%clk 0:29:52][%emt 0:00:26]} 28... Qxe5 {[%clk
0:04:06][%emt 0:00:02]} 29. Bf4 {[%clk 0:29:05][%emt 0:01:17]} 29... Qc5
{[%clk 0:04:36]} 30. Rad1 {[%clk 0:25:24][%emt 0:04:11]} 30... h6 {[%clk
0:04:41][%emt 0:00:24]} 31. Bxc7 {[%clk 0:24:26][%emt 0:01:28]} 31... Rf8
{[%clk 0:03:15][%emt 0:01:57]} 32. Bf4 {[%clk 0:22:40][%emt 0:02:15]} 32...
Bc8 {[%clk 0:03:39][%emt 0:00:05]} 33. Qd2 {[%clk 0:21:51][%emt 0:01:19]}
33... Qxa3 {[%clk 0:03:01][%emt 0:01:09]} 34. Bxh6 {[%clk 0:21:22][%emt
0:00:59]} 34... c3 {[%clk 0:02:12][%emt 0:01:20]} 35. Qc1 {[%clk 0:17:29][%emt
0:04:22]} 35... Qxc1 {[%clk 0:01:34][%emt 0:01:08]} 36. Bxc1 {[%clk
0:17:57][%emt 0:00:03]} 36... Bf5 {[%emt 0:04:49]} 37. Rd5 {[%clk 0:14:50]}
37... b4 {[%clk 0:01:07][%emt 0:00:15]} 38. Ra5 {[%clk 0:14:15][%emt 0:01:05]}
38... b3 {[%clk 0:00:37][%emt 0:01:01]} 39. g4 {[%clk 0:11:07][%emt 0:03:37]}
39... Bxg4 {[%clk 0:00:32][%emt 0:00:34]} 40. Rxe4 {[%clk 0:10:54][%emt
0:00:43]} 40... b2 {[%clk 0:00:46][%emt 0:00:16]} 41. Bxb2 {[%clk
0:10:24][%emt 0:01:00]} 41... cxb2 {[%clk 0:01:38][%emt 0:00:09]} 42. Re1
{[%clk 0:11:01][%emt 0:00:22]} 42... Bb4 {[%clk 0:01:53][%emt 0:00:15]} 0-1

[White "VALMIR, Clovis"]
[Black "DAURIAC, Ilyes"]
[WhiteElo "2006"]
[BlackElo "1656"]
[Result "1-0"]
[Date "2026.03.04"]